Cogmind - Beta 16.1 @@@ ROGUE MODE // 2026.04.21 @ 18:57:44 Player: WOAH_a BUG Result: Self-destructed Performance ------------- Evolutions (1) 500 Regions Visited (2) 400 Robots Destroyed (10) 50 Value Destroyed (265) 265 Prototype IDs (2) 40 Alien Tech Used (0) 0 Bonus (0) 0 TOTAL SCORE: 1255 Bonus ------- None Cogmind --------- Core Integrity 400/400 Matter 126/300 Energy 220/250 System Corruption 0% Temperature Cool (0) Movement Treading (160) Location -9/Materials Parts ------- > --- POWER (1) -------- Ion Engine > --- PROPULSION (2) --- Light Treads Light Treads > --- UTILITY (3) ------ Small Storage Unit Targeting Computer Hacking Suite > --- WEAPON (3) ------- Light Assault Rifle Light Cannon Grenade Launcher > --- INVENTORY (8) ---- Aluminum Leg Aluminum Leg ECM Suite Light Armor Plating Grenade Launcher Peak State ------------ > --- POWER ------------ Ion Engine > --- PROPULSION ------- Light Treads Light Treads > --- UTILITY ---------- Small Storage Unit Targeting Computer Hacking Suite > --- WEAPON ----------- Light Assault Rifle Light Cannon Grenade Launcher > --- INVENTORY -------- Aluminum Leg Aluminum Leg ECM Suite Light Armor Plating Grenade Launcher [Rating: 11] Favorites ----------- Power Ion Engine Engine Ion Engine Propulsion Light Treads Treads Light Treads Utility Small Storage Unit Device ECM Suite Storage Small Storage Unit Processor Targeting Computer Hackware Hacking Suite Weapon Light Assault Rifle Energy Gun EM Pulse Gun Ballistic Gun Light Assault Rifle Ballistic Cannon Light Cannon Launcher Grenade Launcher Build | -11 -10 -9 ------- Run | Yrd Mat Mat Slots Evolved 2 | . . 2 Power . | . . . Propulsion . | . . . Utility 1 | . . 1 Weapon 1 | . . 1 Parts Attached 15 | 6 8 1 Power 2 | 1 1 . Engine 2 | 1 1 . Core . | . . . Reactor . | . . . Propulsion 2 | 2 . . Treads 2 | 2 . . Leg . | . . . Wheel . | . . . Hover . | . . . Flight . | . . . Utility 5 | 1 3 1 Device 1 | . 1 . Storage 2 | 1 1 . Processor 1 | . . 1 Hackware 1 | . 1 . Protection . | . . . Artifact . | . . . Weapon 6 | 2 4 . Energy Gun 1 | 1 . . Energy Cannon . | . . . Ballistic Gun 2 | 1 1 . Ballistic Cannon 1 | . 1 . Launcher 2 | . 2 . Special Weapon . | . . . Impact Weapon . | . . . Slashing Weapon . | . . . Piercing Weapon . | . . . Special Melee Weapon . | . . . Unidentified Prototypes . | . . . Parts Lost . | . . . Power . | . . . Propulsion . | . . . Utility . | . . . Weapon . | . . . Highest Loss Streak . | . . . To Critical Strikes . | . . . Average Backups 5 | 1 6 6 Power . | . . . Propulsion 1 | 1 2 2 Utility 1 | . 1 2 Weapon 1 | . 2 2 Tool/Special . | . . . Unused Backups 4 | . 1 3 Power 1 | . 1 . Propulsion 2 | . . 2 Utility 1 | . . 1 Weapon . | . . . Tool/Special . | . . . Average Slot Usage (%) 99 | . 99 94 Engine 13 | . 14 11 Treads 27 | . 28 22 Device 6 | . 7 . Storage 15 | . 15 11 Hackware 4 | . 4 11 Energy Gun 4 | . 4 . Ballistic Gun 10 | . 10 11 Ballistic Cannon 7 | . 7 5 Launcher 4 | . 4 11 Peak Build Rating 11 | 6 9 11 Average Rating 7 | 4 7 10 On Entrance 5 | . 6 9 Avg Prop Armor Cover (%) . | . . . Naked Turns . | . . . Heaviest Build 20 | 13 20 . Greatest Support 40 | 40 40 . Greatest Overweight (x) 1 | 1 . . Average Overweight (x) . | . . . Largest Inventory Capacity 8 | 8 8 8 Average Capacity 7 | 7 8 8 Most Carried 8 | 3 8 6 Average Carried 6 | 1 6 5 Final Capacity 8 | 8 8 8 Final Carried 7 | 3 7 5 Class Distribution -------------------- 100% | Mutant Dominant Class ---------------- Mutant | -10/Materials Mutant | -9/Materials Resources | -11 -10 -9 ----------- Run | Yrd Mat Mat Matter Collected 324 | 199 125 . Remotely . | . . . Salvage Created 216 | . 216 . Parts 19 | . 19 . Haulers Intercepted . | . . . Recyclers Shooed 1 | . 1 . Parts Field Recycled . | . . . Retrieved Matter . | . . . Parts Self-Destructed . | . . . Prevented . | . . . Parts Restored . | . . . Kills | -11 -10 -9 ------- Run | Yrd Mat Mat Combat Hostiles Destroyed 8 | . 8 . Guns 3 | . 3 . Cannons 1 | . 1 . AOE 4 | . 4 . Classes Destroyed 4 | . 4 . Recycler 1 | . 1 . Operator 1 | . 1 . Swarmer 3 | . 3 . Grunt 5 | . 5 . Best Kill Streak 6 | . 6 . Combat Bots Only 5 | . 5 . Max Kills in Single Turn 1 | . 1 . Gunslinging . | . . . Exploded 1 | . 1 . Melee . | . . . Uniques/NPCs Destroyed . | . . . Combat | -11 -10 -9 -------- Run | Yrd Mat Mat Hostile Shots Fired 50 | . 50 . Missed 16 | . 16 . Hits 34 | . 34 . Projectile 34 | . 34 . Critical Strikes 1 | . 1 . Damage Taken 422 | . 422 . Core 139 | . 139 . Absorbed by Shields . | . . . Core Remaining (%) 72 | 100 44 . Volleys Fired 24 | . 24 . Largest 2 | . 2 . Hottest 70 | . 70 . Shots Fired 39 | . 39 . Gun 22 | . 22 . Cannon 11 | . 11 . Launcher 6 | . 6 . Special . | . . . Kinetic 25 | . 25 . Thermal . | . . . Explosive 6 | . 6 . Electromagnetic 8 | . 8 . Robot Hit Streak 6 | . 6 . Robot Miss Streak 5 | . 5 . Penetration Max . | . . . Secondary Targets . | . . . Shots Hit Robots 24 | . 24 . Core Hits 18 | . 18 . Critical Kills . | . . . Critical Parts Destroyed . | . . . Critical Strikes . | . . . Melee Attacks . | . . . Impact . | . . . Slashing . | . . . Piercing . | . . . Sneak Attacks . | . . . Combat Hostiles . | . . . Follow-up Attacks . | . . . Damage Inflicted 724 | . 724 . Guns 147 | . 147 . Cannons 107 | . 107 . Explosions 470 | . 470 . Melee . | . . . Ramming . | . . . Kinetic 180 | . 180 . Thermal 32 | . 32 . Explosive 438 | . 438 . Electromagnetic 74 | . 74 . Impact . | . . . Slashing . | . . . Piercing . | . . . Highest Corruption 2 | . 2 . Average Corruption 2 | . 2 . Corruption Purged . | . . . Corruption Blocked . | . . . Effects 4 | . 4 . Message Errors 1 | . 1 . Data Loss (minor) 1 | . 1 . Data Loss (major) 1 | . 1 . Alerts 1 | . 1 . Overload Shots . | . . . Overflow Damage 26 | . 26 . Projectiles . | . . . Explosions 26 | . 26 . Melee . | . . . Knockbacks 2 | . 2 . Impact . | . . . Kinetic 2 | . 2 . Secondary . | . . . Self-Inflicted Damage 44 | . 44 . Shots 2 | . 2 . Rammed . | . . . Targets Rammed . | . . . Kicked . | . . . Crushed . | . . . Highest Temperature 54 | . 54 . Average Temperature 17 | . 17 . Received Heat Transfer 186 | . 186 . Siege Activations . | . . . Martial Activations . | . . . Shielding Activations . | . . . Robots Disrupted . | . . . Combat Hostiles . | . . . Robots Corrupted . | . . . Combat Hostiles . | . . . Parts Fried . | . . . Impact Corruptions . | . . . Robots Melted . | . . . Combat Hostiles . | . . . Parts Melted . | . . . Heat Transferred . | . . . Parts Sabotaged . | . . . Parts Stolen . | . . . Parts Stripped . | . . . Power Chain Reactions 1 | . 1 . Alert | -11 -10 -9 ------- Run | Yrd Mat Mat Maximum Alert Level . | . . . Low Security (%) 100 | 100 100 100 Level 1 . | . . . Level 2 . | . . . Level 3 . | . . . Level 4 . | . . . Level 5 . | . . . High Security . | . . . Max Security . | . . . Peak Influence 147 | . 147 26 Initial 26 | . . 26 Average 36 | . 42 26 Influence Increases 269 | . 269 . Destroy 0b10 Robot/C 160 | . 160 . Destroy 0b10 Robot/NC 10 | . 10 . Destroy Leader 30 | . 30 . Successful Hack 5 | . 5 . Disable Machine 45 | . 45 . Destroy Structure 19 | . 19 . Influence Decreases 243 | . 207 36 Entered New Map 36 | . . 36 Time Decay 207 | . 207 . Squads Dispatched 1 | . 1 . Investigation . | . . . Extermination . | . . . Reinforcement 1 | . 1 . Assault . | . . . Garrison . | . . . Intercept . | . . . Searches Triggered . | . . . Construction Impeded . | . . . Haulers Reinforced . | . . . Active Scanning Responses . | . . . Cargo Convoy Interrupts . | . . . Stealth | -11 -10 -9 --------- Run | Yrd Mat Mat Distress Signals 1 | . 1 . Communications Jammed . | . . . Distress Signals . | . . . Times Spotted 11 | . 11 . Peak Tracking Total 3 | . 3 . Tactical Retreats . | . . . Traps | -11 -10 -9 ------- Run | Yrd Mat Mat Traps Triggered 1 | . 1 . Indirectly . | . . . Trap Hack Attempts . | . . . Triggered . | . . . Disarmed . | . . . Reprogrammed . | . . . Reused . | . . . Traps Extracted . | . . . Installed . | . . . Triggered . | . . . Machines | -11 -10 -9 ---------- Run | Yrd Mat Mat Machines Disabled 3 | . 3 . Max in Single Turn 1 | . 1 . Machines Repaired . | . . . Machines Dismantled . | . . . Machines Sabotaged . | . . . Overloaded Fab Kills . | . . . Hacking | -11 -10 -9 --------- Run | Yrd Mat Mat Machines Accessed 3 | . 3 . Terminals 2 | . 2 . Fabricators . | . . . Repair Stations 1 | . 1 . Recycling Units . | . . . Scanalyzers . | . . . Garrison Access . | . . . Total Hacks 6 | . 6 . Successful 3 | . 3 . Failed 3 | . 3 . Catastrophic . | . . . Database Lockouts . | . . . Manual . | . . . Terminals 4 | . 4 . Fabricators . | . . . Repair Stations 2 | . 2 . Recycling Units . | . . . Scanalyzers . | . . . Garrison Access . | . . . Terminal Hacks 3 | . 3 . Prototype ID Bank 1 | . 1 . Maintenance Status 1 | . 1 . Registered Components 1 | . 1 . Fabricator Hacks . | . . . Repair Station Hacks . | . . . Recycling Unit Hacks . | . . . Scanalyzer . | . . . Garrison Access Hacks . | . . . Unauthorized Hacks . | . . . Terminals . | . . . Fabricators . | . . . Repair Stations . | . . . Recycling Units . | . . . Scanalyzers . | . . . Garrison Access . | . . . Data Cores Recovered . | . . . Used . | . . . Hacking Detections 1 | . 1 . Full Trace Events . | . . . Feedback Events . | . . . Feedback Blocked . | . . . Robot Schematics Acquired . | . . . Robots Built . | . . . Authchips . | . . . Time . | . . . Total Robot Build Rating . | . . . Part Schematics Acquired . | . . . Parts Built . | . . . Authchips . | . . . Time . | . . . Total Part Build Rating . | . . . Part Studies Acquired . | . . . Parts Repaired . | . . . Time . | . . . Parts Recycled . | . . . Recycled Matter . | . . . Retrieved Matter . | . . . Retrieved Components . | . . . Parts Scanalyzed . | . . . Part Schematics Acquired . | . . . Parts Damaged . | . . . Bothacking | -11 -10 -9 ------------ Run | Yrd Mat Mat Used RIF Installer . | . . . Robots Hacked . | . . . Non-combat . | . . . Combat . | . . . Robot Hacks Applied . | . . . Relay Couplers Released . | . . . Fabnet Peak Effective % . | . . . Robots Rewired . | . . . Allies Hacked . | . . . Hacks Repelled . | . . . Allies | -11 -10 -9 -------- Run | Yrd Mat Mat Total Allies . | . . . Largest Group . | . . . Highest-Rated Group . | . . . Highest-Rated Ally . | . . . Total Orders . | . . . Ally Attacks . | . . . Total Damage . | . . . Kills . | . . . Allies Corrupted . | . . . Allies Melted . | . . . Intel | -11 -10 -9 ------- Run | Yrd Mat Mat Active Infowar (turns) 371 | . 371 . ECM 371 | . 371 . Robot Analysis Total . | . . . Derelict Logs Recovered . | . . . Drone Launches . | . . . Drone Recoveries . | . . . Exploration | -11 -10 -9 ------------- Run | Yrd Mat Mat Turns Passed 839 | 112 723 4 Spaces Moved 450 | 65 385 . Core 22 | 22 . . Treads 428 | 43 385 . Legs . | . . . Wheels . | . . . Hover . | . . . Flight . | . . . Fastest Speed 50 | 50 160 . Average Speed 155 | 128 160 . Slowest Speed 160 | 160 160 . Overloaded Moves . | . . . Propulsion Burnouts . | . . . Robots Hopped . | . . . Potential Cave-ins . | . . . Cave-ins Triggered . | . . . Exploration Rate (%) 16 | 5 43 1 Regions Visited 2 Branch Regions . Pre-discovered Areas . | . . . Known Exits Taken . | . . . Unknown Exits Taken 2 | 1 1 . Scrap Searched . | . . . Spaces Dug . | . . . Terrain Destroyed 22 | . 22 . Melee . | . . . Projectile . | . . . AOE 22 | . 22 . Terrain Rammed . | . . . Walls Destroyed . | . . . Machines Disabled . | . . . Actions | -11 -10 -9 --------- Run | Yrd Mat Mat Total 554 | 94 457 3 Wait 38 | 15 23 . Move 448 | 64 384 . Hop . | . . . Pick Up 20 | 9 11 . Fast Attach . | . . . Attach 11 | 6 3 2 Detach . | . . . Swap 7 | . 6 1 Drop 6 | . 6 . Fire 24 | . 24 . Melee . | . . . Ram . | . . . Kick . | . . . Crush . | . . . Escape Stasis . | . . . Rewire . | . . . Trap . | . . . Miscellaneous . | . . . Route ------- -11/Scrapyard -10/Materials (discovered 2 exits: [*Mat] / [*Min]) -9/Materials History --------- Turn | Location | Event 31 | -11/Scrapyard | Discovered new exit (range 16) 113 | -11/Scrapyard | Entered Materials 291 | -10/Materials | Discovered new exit (range 7) 309 | -10/Materials | Build established: Mutant 765 | -10/Materials | Core integrity fell below 50% 793 | -10/Materials | Discovered new exit (range 11) 836 | -10/Materials | Entered another Materials area 836 | -9/Materials | Evolved 2 slots: Utility x1, Weapon x1 840 | -9/Materials | Self-destructed Last Messages --------------- G-47 Trooper destroyed. G-34 Mercenary knocked back. System corrupted: Substantial component data lost. R-06 Scavenger collects Lgt. Nuclear Core. G-34 Mercenary destroyed. R-06 Scavenger collects Particle Gun. G-34 Mercenary destroyed. Acquired 32 matter. Acquired 27 matter. Dropped Ion Engine. Dropped Lgt. Ion Engine. Acquired Ion Engine. EXIT=FOUND Acquired 33 matter. Acquired 1 matter. K-01 Serf collects debris. PARAMETERS=UTILITY+1,WEAPON+1 LOCATION=UNKNOWN GOAL=ESCAPE Map ----- +----------------------------------------------------+ | ?????????????????????????????????????????????????? | | ?????????????????????????????????????????????????? | | ?????????????????????????????????????????????????? | | ?????????????????????????????????????????????????? | | ?????????????????????????????????????????????????? | | ?????????????????????????????????????????????????? | | ?????????????????????????????????????????????????? | | ?????????????????????????????????????????????????? | | ?????????????????????????????????????????????????? | | ?????????????????????????????????????????????????? | | ???????????????????????? "??????????????????????? | | ???????????????????????? ??????????????????????? | | ???????????????????????? ?????????????????????? | | ???????????????????????# "?????????????????????? | | ???????????????????????# ""????????????????????? | | ???????????????????????# ""????????????????????? | | ???????????????????????+ ????????????????????? | | ???????????????????????# ?????????????????????? | | ???????????????????????# ?????????????????????? | | ???????????????????????# ?????????????????????? | | ???????????????????????# #?????????????????????? | | ??????????????????????## #?????????????????????? | | ??????????????????????? #?????????????????????? | | ???????????????????????# +?????????????????????? | | ???????????????????????# #?????????????????????? | | ???????????????????????# @ #?????????????????????? | | ???????????????????????# #?????????????????????? | | ???????????????????????#####?????????????????????? | | ?????????????????????????????????????????????????? | | ?????????????????????????????????????????????????? | | ?????????????????????????????????????????????????? | | ?????????????????????????????????????????????????? | | | | | | | | | | | | | | | | | | | | | | | | | | | | | | | | | | | | | +----------------------------------------------------+ Best States ------------- Heat Dissipation 28 Energy Generation 10 Energy Capacity 250 Matter Stores 239 Matter Capacity 300 Sight Range 16 Terrain Scan Density 10 ECM Strength 1 Evasion (%) 50 Targeting Accuracy 5 Recoil Reduction 2 Offensive Hacking 10 Item Schematics ----------------- None Robot Schematics ------------------ None Fabricated ------------ Nothing Repaired ---------- Nothing Studied --------- None Alien Tech Used ----------------- None Achievements -------------- None Challenges ------------ None Game ------ Seed AntimissileRingMediator Manual? 0 Play Time 00:09:08 Cumulative 12.2 hours Start 2026.04.21 @ 18:43:06 End 2026.04.21 @ 18:57:44 Sessions 1 Manual Loads 0 Difficulty Rogue Special Mode None Game No. 22 Rogue 22 Adventurer 0 Explorer 0 Win Type - Total 0 Types 0/0/0/0/0/0/0/0/0/0 Lore% 3 Gallery% 12 Achievement% 10 Wizard Run 0 Options --------- Layout 1 ASCII 0 Keyboard 0 Movement Arrows Keybinds 0 Fullscreen 1 Font 24/Smallcaps Map View 50x35 Zoom Use 0% Tactical HUD 0 Map Filters NONE Filters NONE Steam 1 RUN: ffc761ab-9470-4d8a-a566-d9068cc7b78a